[Event "14e Open International de Quenza"]
[Site "Quenza, France"]
[Date "2025.07.06"]
[Round "9.6"]
[White "Sumets, Andrey"]
[Black "Bonelli Maestracci, Pierre Joseph"]
[Result "1-0"]
[TimeControl "5min+3s"]
[WhiteElo "2497"]
[BlackElo "2098"]

1. d4 {[%clk 00:05:03]} Nf6 {[%clk 00:05:03]} 2. c4 {[%clk 00:05:03]} {[%emt
00:00:02]} b6 {[%clk 00:05:03]} 3. Nc3 {[%clk 00:04:46]} {[%emt 00:00:20]} Bb7
{[%clk 00:05:03]} 4. a3 {[%clk 00:04:40]} {[%emt 00:00:09]} e6 {[%clk
00:04:57]} {[%emt 00:00:09]} 5. Nf3 {[%clk 00:04:39]} {[%emt 00:00:04]} Be7
{[%clk 00:04:52]} {[%emt 00:00:08]} 6. d5 {[%clk 00:04:35]} {[%emt 00:00:07]}
exd5 {[%clk 00:04:29]} {[%emt 00:00:26]} 7. cxd5 {[%clk 00:04:35]} {[%emt
00:00:01]} O-O {[%clk 00:04:15]} {[%emt 00:00:17]} 8. e4 {[%clk 00:04:35]}
{[%emt 00:00:02]} Re8 {[%clk 00:04:06]} {[%emt 00:00:12]} 9. Bd3 {[%clk
00:04:34]} {[%emt 00:00:04]} c6 {[%clk 00:03:59]} {[%emt 00:00:11]} 10. dxc6
{[%clk 00:04:14]} {[%emt 00:00:23]} Nxc6 {[%clk 00:03:28]} {[%emt 00:00:33]} 11.
O-O {[%clk 00:04:14]} Bf8 {[%clk 00:03:27]} {[%emt 00:00:07]} 12. Bg5 {[%clk
00:04:11]} h6 {[%clk 00:03:24]} {[%emt 00:00:12]} 13. Bh4 {[%clk 00:04:11]} Be7
{[%clk 00:03:23]} {[%emt 00:00:05]} 14. Re1 {[%clk 00:03:46]} d6 {[%clk
04:04:44]} 15. Rc1 {[%clk 00:03:46]} Rc8 {[%clk 04:04:44]} {[%emt 00:00:36]} 16.
h3 {[%clk 00:03:37]} Ne5 {[%clk 00:03:16]} {[%emt 00:00:20]} 17. Bb5 {[%clk
00:03:34]} Rf8 {[%clk 00:01:41]} {[%emt 00:01:44]} 18. Bg3 {[%clk 00:03:27]} a6
{[%emt 00:00:30]} 19. Bf1 {[%clk 00:03:10]} Nxf3+ {[%clk 00:00:43]} {[%emt
00:01:04]} 20. Qxf3 {[%clk 00:03:09]} Re8 {[%clk 00:00:30]} {[%emt 00:00:19]}
21. Rcd1 {[%clk 00:02:59]} Qc7 {[%clk 00:00:30]} {[%emt 00:00:14]} 22. Qd3
{[%clk 00:02:48]} Rcd8 {[%clk 00:00:26]} {[%emt 00:00:21]} 23. Qd4 {[%clk
00:02:40]} Qc5 {[%clk 00:00:18]} {[%emt 00:00:22]} 24. Qd3 {[%clk 00:02:37]}
Qc7 {[%clk 00:00:18]} {[%emt 00:00:07]} 25. Bf4 {[%clk 00:02:28]} Qc6 {[%clk
00:00:18]} {[%emt 00:00:12]} 26. Rc1 {[%clk 00:02:25]} Qd7 {[%clk 00:00:15]}
{[%emt 00:00:12]} 27. Qd4 {[%clk 00:02:23]} d5 {[%clk 00:00:14]} {[%emt
00:00:10]} 28. Qxb6 {[%clk 00:02:08]} dxe4 {[%clk 00:00:14]} {[%emt 00:00:19]}
29. Red1 {[%clk 00:02:08]} {[%emt 00:00:02]} Qc6 {[%clk 00:00:14]} {[%emt
00:00:03]} 30. Qxc6 {[%clk 00:01:57]} {[%emt 00:00:14]} Bxc6 {[%clk 00:00:14]}
31. Bxa6 {[%clk 00:01:56]} {[%emt 00:00:04]} g5 {[%clk 00:00:10]} {[%emt
00:00:07]} 32. Bc7 {[%clk 00:01:47]} {[%emt 00:00:12]} Rxd1+ {[%clk 00:00:07]}
{[%emt 00:00:06]} 33. Nxd1 {[%clk 00:01:40]} {[%emt 00:00:09]} Bd5 {[%clk
00:00:07]} {[%emt 00:00:03]} 34. Ne3 {[%clk 00:01:40]} {[%emt 00:00:03]} Be6
{[%clk 00:00:07]} 35. a4 {[%clk 00:01:35]} {[%emt 00:00:09]} Ra8 {[%clk
00:00:07]} {[%emt 00:00:02]} 36. Bb5 {[%clk 00:01:35]} {[%emt 00:00:03]} Rc8
{[%clk 00:00:06]} {[%emt 00:00:05]} 37. Rc2 {[%clk 00:01:17]} {[%emt 00:00:22]}
Nd5 {[%clk 00:00:06]} {[%emt 00:00:02]} 38. Bg3 {[%clk 00:01:05]} {[%emt
00:00:15]} Nxe3 {[%clk 00:00:06]} {[%emt 00:00:02]} 39. Rxc8+ {[%clk 00:01:05]}
Bxc8 {[%clk 00:00:06]} 40. fxe3 {[%clk 00:01:05]} {[%emt 00:00:01]} f5 {[%clk
00:00:06]} {[%emt 00:00:02]} 41. Be5 {[%clk 00:01:01]} {[%emt 00:00:06]} Bb4
{[%clk 00:00:06]} {[%emt 00:00:02]} 1-0

[Event "14e Open International de Quenza"]
[Site "Quenza, France"]
[Date "2025.07.06"]
[Round "9.7"]
[White "Pieri, Pierre-Louis"]
[Black "Toktomushev, Teimur"]
[Result "0-1"]
[TimeControl "5min+3s"]
[WhiteElo "2224"]
[BlackElo "2401"]

1. e4 {[%clk 00:05:03]} c5 {[%clk 00:05:03]} {[%emt 00:00:01]} 2. Nc3 {[%clk
00:05:03]} {[%emt 00:00:01]} e6 {[%clk 00:05:03]} {[%emt 00:00:01]} 3. Nge2
{[%clk 00:05:03]} {[%emt 00:00:02]} a6 {[%clk 00:05:03]} {[%emt 00:00:03]} 4.
g3 {[%clk 00:05:03]} b5 {[%clk 00:05:03]} {[%emt 00:00:01]} 5. Bg2 {[%clk
00:05:03]} Bb7 {[%clk 00:05:03]} {[%emt 00:00:01]} 6. d4 {[%clk 00:05:03]} cxd4
{[%clk 00:05:03]} {[%emt 00:00:02]} 7. Nxd4 {[%clk 00:05:03]} Nf6 {[%clk
00:05:03]} {[%emt 00:00:01]} 8. O-O {[%clk 00:04:53]} {[%emt 00:00:13]} b4
{[%clk 00:05:03]} {[%emt 00:00:02]} 9. Na4 {[%clk 00:04:53]} {[%emt 00:00:01]}
Bxe4 {[%clk 00:05:03]} {[%emt 00:00:03]} 10. Bxe4 {[%clk 00:04:52]} {[%emt
00:00:04]} Nxe4 {[%clk 00:05:03]} {[%emt 00:00:02]} 11. Re1 {[%clk 00:04:52]}
Nc5 {[%clk 00:04:58]} {[%emt 00:00:08]} 12. c3 {[%clk 00:03:45]} {[%emt
00:01:11]} Nxa4 {[%clk 00:04:58]} {[%emt 00:00:04]} 13. Qxa4 {[%clk 00:03:45]}
{[%emt 00:00:01]} Bc5 {[%clk 00:04:51]} {[%emt 00:00:09]} 14. Nb3 {[%clk
00:03:25]} {[%emt 00:00:23]} Be7 {[%clk 00:04:36]} {[%emt 00:00:19]} 15. cxb4
{[%clk 00:03:24]} {[%emt 00:00:04]} O-O {[%clk 00:04:36]} {[%emt 00:00:02]} 16.
Be3 {[%clk 00:03:15]} {[%emt 00:00:12]} Nc6 {[%clk 00:04:09]} {[%emt 00:00:30]}
17. Nc5 {[%clk 00:02:56]} {[%emt 00:00:22]} Ne5 {[%clk 00:03:47]} {[%emt
00:00:26]} 18. Red1 {[%clk 00:02:39]} {[%emt 00:00:19]} d5 {[%clk 00:03:47]}
{[%emt 00:00:03]} 19. Rac1 {[%clk 00:02:00]} {[%emt 00:00:42]} Bf6 {[%clk
00:03:40]} {[%emt 00:00:10]} 20. Nxa6 {[%clk 00:01:12]} {[%emt 00:00:52]} d4
{[%clk 00:03:25]} {[%emt 00:00:17]} 21. b5 {[%clk 00:00:37]} {[%emt 00:00:37]}
Qd5 {[%clk 00:03:23]} {[%emt 00:00:05]} 22. Bf4 {[%clk 00:00:28]} {[%emt
00:00:13]} Nf3+ {[%clk 00:03:17]} {[%emt 00:00:08]} 23. Kf1 {[%clk 00:00:28]}
Nxh2+ {[%clk 00:03:17]} {[%emt 00:00:03]} 24. Kg1 {[%clk 00:00:28]} Nf3+ {[%clk
00:03:17]} {[%emt 00:00:02]} 25. Kf1 {[%clk 00:00:26]} {[%emt 00:00:04]} e5
{[%clk 00:03:17]} {[%emt 00:00:02]} 26. Bd2 {[%clk 00:00:18]} {[%emt 00:00:12]}
Nxd2+ {[%clk 00:03:17]} {[%emt 00:00:02]} 27. Rxd2 {[%clk 00:00:15]} {[%emt
00:00:06]} Qh1+ {[%clk 00:03:17]} 28. Ke2 {[%clk 00:00:15]} {[%emt 00:00:01]}
Qxc1 {[%clk 00:03:17]} {[%emt 00:00:02]} 29. Qb4 {[%clk 00:00:13]} {[%emt
00:00:05]} e4 {[%clk 00:03:16]} {[%emt 00:00:04]} 0-1

[Event "14e Open International de Quenza"]
[Site "Quenza, France"]
[Date "2025.07.06"]
[Round "9.8"]
[White "Guillemart, Serge"]
[Black "Skripchenko, Almira"]
[Result "0-1"]
[TimeControl "5min+3s"]
[WhiteElo "2135"]
[BlackElo "2359"]

1. e4 {[%clk 00:05:03]} {[%emt 00:00:02]} d5 {[%clk 00:05:03]} {[%emt
00:00:01]} 2. exd5 {[%clk 00:05:03]} {[%emt 00:00:02]} Qxd5 {[%clk 00:05:03]} 3.
Nc3 {[%clk 00:05:03]} Qd8 {[%clk 00:05:03]} {[%emt 00:00:01]} 4. d4 {[%clk
00:05:03]} {[%emt 00:00:01]} Nf6 {[%clk 00:05:03]} {[%emt 00:00:01]} 5. Be2
{[%clk 00:05:03]} {[%emt 00:00:01]} Bf5 {[%clk 00:05:03]} {[%emt 00:00:03]} 6.
Nf3 {[%clk 00:05:03]} {[%emt 00:00:03]} e6 {[%clk 00:05:03]} {[%emt 00:00:01]}
7. O-O {[%clk 00:05:03]} {[%emt 00:00:02]} c6 {[%clk 00:05:03]} {[%emt
00:00:04]} 8. h3 {[%clk 00:04:58]} {[%emt 00:00:07]} Nbd7 {[%clk 00:05:02]}
{[%emt 00:00:04]} 9. Be3 {[%clk 00:04:58]} {[%emt 00:00:02]} Bd6 {[%clk
00:04:59]} {[%emt 00:00:07]} 10. Qd2 {[%clk 00:04:58]} {[%emt 00:00:02]} Qc7
{[%clk 00:04:59]} {[%emt 00:00:02]} 11. a4 {[%clk 00:04:55]} {[%emt 00:00:06]}
a5 {[%clk 00:04:56]} {[%emt 00:00:06]} 12. Rfe1 {[%clk 00:04:54]} {[%emt
00:00:04]} O-O {[%clk 00:04:56]} {[%emt 00:00:02]} 13. Nh4 {[%clk 00:04:49]}
{[%emt 00:00:08]} Bg6 {[%clk 00:04:55]} {[%emt 00:00:03]} 14. Nxg6 {[%clk
00:04:49]} {[%emt 00:00:02]} hxg6 {[%clk 00:04:55]} {[%emt 00:00:01]} 15. Rad1
{[%clk 00:04:46]} {[%emt 00:00:06]} Rad8 {[%clk 00:04:54]} {[%emt 00:00:04]} 16.
Bf3 {[%clk 00:04:46]} {[%emt 00:00:02]} Bb4 {[%clk 00:04:47]} {[%emt 00:00:10]}
17. Qd3 {[%clk 00:04:24]} {[%emt 00:00:25]} Nb6 {[%clk 00:04:47]} {[%emt
00:00:04]} 18. Bd2 {[%clk 00:04:09]} {[%emt 00:00:17]} Nbd7 {[%clk 00:04:26]}
{[%emt 00:00:24]} 19. Qc4 {[%clk 00:04:05]} {[%emt 00:00:07]} Bd6 {[%clk
00:03:47]} {[%emt 00:00:43]} 20. Ne4 {[%clk 00:03:56]} {[%emt 00:00:11]} Nxe4
{[%clk 00:03:47]} {[%emt 00:00:02]} 21. Bxe4 {[%clk 00:03:56]} Nf6 {[%clk
00:03:42]} {[%emt 00:00:09]} 22. Bd3 {[%clk 00:03:55]} {[%emt 00:00:03]} Bh2+
{[%clk 00:03:38]} {[%emt 00:00:07]} 23. Kh1 {[%clk 00:03:54]} {[%emt 00:00:04]}
Bf4 {[%clk 00:03:34]} {[%emt 00:00:07]} 24. c3 {[%clk 00:03:41]} {[%emt
00:00:17]} Rd5 {[%clk 00:03:27]} {[%emt 00:00:10]} 25. Bf1 {[%clk 00:03:29]}
{[%emt 00:00:15]} Rfd8 {[%clk 00:03:27]} {[%emt 00:00:03]} 26. Bxf4 {[%clk
00:03:25]} {[%emt 00:00:07]} Qxf4 {[%clk 00:03:27]} {[%emt 00:00:01]} 27. Qe2
{[%clk 00:03:25]} {[%emt 00:00:01]} Rf5 {[%clk 00:03:17]} {[%emt 00:00:13]} 28.
Kg1 {[%clk 00:03:09]} {[%emt 00:00:19]} Rfd5 {[%clk 00:02:53]} {[%emt
00:00:27]} 29. Rd3 {[%clk 00:02:54]} {[%emt 00:00:18]} Qd6 {[%clk 00:02:51]}
{[%emt 00:00:05]} 30. Rf3 {[%clk 00:02:47]} {[%emt 00:00:10]} c5 {[%clk
00:02:39]} {[%emt 00:00:16]} 31. dxc5 {[%clk 00:02:46]} {[%emt 00:00:04]} Qxc5
{[%clk 00:02:39]} {[%emt 00:00:01]} 32. Qc2 {[%clk 00:02:30]} {[%emt 00:00:18]}
Rd2 {[%clk 00:02:22]} {[%emt 00:00:20]} 33. Qb3 {[%clk 00:02:30]} {[%emt
00:00:01]} b6 {[%clk 00:02:22]} {[%emt 00:00:02]} 34. Bc4 {[%clk 00:02:24]}
{[%emt 00:00:09]} R8d6 {[%clk 00:02:02]} {[%emt 00:00:23]} 35. Bb5 {[%clk
00:02:09]} {[%emt 00:00:18]} Qg5 {[%clk 00:01:50]} {[%emt 00:00:15]} 36. Rg3
{[%clk 00:01:57]} {[%emt 00:00:15]} Qc5 {[%clk 00:01:50]} 37. Rf3 {[%clk
00:01:57]} {[%emt 00:00:02]} R6d5 {[%clk 00:01:35]} {[%emt 00:00:18]} 38. Bc4
{[%clk 00:01:55]} {[%emt 00:00:06]} Rf5 {[%clk 00:01:35]} {[%emt 00:00:03]} 39.
Rxf5 {[%clk 00:01:50]} {[%emt 00:00:08]} gxf5 {[%clk 00:01:35]} {[%emt
00:00:01]} 40. Rf1 {[%clk 00:00:52]} {[%emt 00:01:00]} Ne4 {[%clk 00:01:35]}
{[%emt 00:00:01]} 41. Bxe6 {[%clk 00:00:52]} {[%emt 00:00:01]} fxe6 {[%clk
00:01:33]} {[%emt 00:00:05]} 42. Qxe6+ {[%clk 00:00:52]} {[%emt 00:00:02]} Kh7
{[%clk 00:01:32]} {[%emt 00:00:04]} 43. Qf7 {[%clk 00:00:52]} {[%emt 00:00:03]}
Nf6 {[%clk 00:01:20]} {[%emt 00:00:16]} 44. b4 {[%clk 00:00:45]} {[%emt
00:00:10]} axb4 {[%clk 00:01:01]} {[%emt 00:00:22]} 45. cxb4 {[%clk 00:00:45]}
{[%emt 00:00:01]} Qxb4 {[%clk 00:01:01]} {[%emt 00:00:02]} 46. Qe6 {[%clk
00:00:45]} {[%emt 00:00:01]} Qc5 {[%clk 00:01:01]} {[%emt 00:00:02]} 47. Qf7
{[%clk 00:00:34]} {[%emt 00:00:15]} Qd5 {[%clk 00:00:42]} {[%emt 00:00:21]} 48.
Qc7 {[%clk 00:00:31]} {[%emt 00:00:06]} Qd4 {[%clk 00:00:40]} {[%emt 00:00:05]}
49. Qc8 {[%clk 00:00:22]} {[%emt 00:00:12]} Qf4 {[%clk 00:00:38]} {[%emt
00:00:04]} 50. Qc1 {[%clk 00:00:11]} {[%emt 00:00:15]} Ne4 {[%clk 00:00:32]}
{[%emt 00:00:09]} 51. g3 {[%clk 00:00:11]} {[%emt 00:00:01]} Nxg3 {[%emt
00:00:10]} 0-1

[Event "14e Open International de Quenza"]
[Site "Quenza, France"]
[Date "2025.07.06"]
[Round "9.9"]
[White "Calistri, Tristan"]
[Black "Chen, Muxi"]
[Result "1-0"]
[TimeControl "5min+3s"]
[WhiteElo "2198"]
[BlackElo "2224"]

1. e4 {[%clk 00:05:03]} c5 {[%clk 00:05:03]} {[%emt 00:00:03]} 2. Nc3 {[%clk
00:05:03]} Nc6 {[%clk 00:05:03]} {[%emt 00:00:04]} 3. Nge2 {[%clk 00:05:03]} g6
{[%clk 00:05:02]} {[%emt 00:00:05]} 4. d4 {[%clk 00:05:03]} cxd4 {[%clk
00:05:02]} {[%emt 00:00:02]} 5. Nxd4 {[%clk 00:05:03]} Bg7 {[%clk 00:05:02]}
{[%emt 00:00:02]} 6. Be3 {[%clk 00:05:03]} Nf6 {[%clk 00:05:02]} {[%emt
00:00:02]} 7. Bc4 {[%clk 00:05:03]} Qa5 {[%clk 00:05:02]} {[%emt 00:00:02]} 8.
O-O {[%clk 00:05:02]} {[%emt 00:00:04]} O-O {[%clk 00:05:02]} {[%emt 00:00:03]}
9. Bb3 {[%clk 00:05:01]} {[%emt 00:00:03]} d6 {[%clk 00:05:00]} {[%emt
00:00:05]} 10. h3 {[%clk 00:05:01]} {[%emt 00:00:02]} Bd7 {[%clk 00:04:59]}
{[%emt 00:00:04]} 11. Re1 {[%clk 00:05:01]} {[%emt 00:00:01]} Rac8 {[%clk
00:04:44]} {[%emt 00:00:18]} 12. Qe2 {[%clk 00:04:57]} {[%emt 00:00:06]} Nxd4
{[%clk 00:04:20]} {[%emt 00:00:27]} 13. Bxd4 {[%clk 00:04:57]} {[%emt
00:00:02]} b5 {[%clk 00:04:20]} {[%emt 00:00:02]} 14. Rad1 {[%clk 00:04:45]}
{[%emt 00:00:15]} b4 {[%clk 00:03:56]} {[%emt 00:00:27]} 15. Nd5 {[%clk
00:04:45]} {[%emt 00:00:02]} Nxd5 {[%clk 00:03:51]} {[%emt 00:00:09]} 16. exd5
{[%clk 00:04:45]} {[%emt 00:00:02]} Bxd4 {[%clk 00:03:29]} {[%emt 00:00:25]} 17.
Rxd4 {[%clk 00:04:45]} {[%emt 00:00:02]} Qc5 {[%clk 00:03:29]} {[%emt
00:00:01]} 18. Qd2 {[%clk 00:02:50]} {[%emt 00:01:58]} a5 {[%clk 00:03:02]}
{[%emt 00:00:31]} 19. Rxe7 {[%clk 00:02:41]} {[%emt 00:00:12]} Bf5 {[%clk
00:02:23]} {[%emt 00:00:42]} 20. g4 {[%clk 00:02:37]} {[%emt 00:00:07]} a4
{[%clk 00:01:30]} {[%emt 00:00:56]} 21. Bxa4 {[%clk 00:02:04]} {[%emt
00:00:35]} Bxc2 {[%clk 00:01:24]} {[%emt 00:00:09]} 22. Bxc2 {[%clk 00:01:22]}
{[%emt 00:00:45]} Qxc2 {[%clk 00:01:01]} {[%emt 00:00:26]} 23. Qxc2 {[%clk
00:01:22]} {[%emt 00:00:02]} Rxc2 {[%clk 00:01:01]} {[%emt 00:00:01]} 24. Rxb4
{[%clk 00:01:22]} Rd2 {[%clk 00:01:00]} {[%emt 00:00:04]} 25. Rb5 {[%clk
00:01:22]} {[%emt 00:00:01]} Kg7 {[%clk 00:00:55]} {[%emt 00:00:08]} 26. a4
{[%clk 00:00:50]} {[%emt 00:00:36]} Kf6 {[%clk 00:00:40]} {[%emt 00:00:18]} 27.
Re3 {[%clk 00:00:50]} {[%emt 00:00:01]} Rc8 {[%clk 00:00:31]} {[%emt 00:00:12]}
28. a5 {[%clk 00:00:50]} {[%emt 00:00:01]} Rd1+ {[%clk 00:00:27]} {[%emt
00:00:07]} 29. Kg2 {[%clk 00:00:50]} {[%emt 00:00:02]} Ra1 {[%clk 00:00:26]}
{[%emt 00:00:04]} 30. b4 {[%clk 00:00:50]} {[%emt 00:00:02]} Rc4 {[%clk
00:00:21]} {[%emt 00:00:07]} 31. Rb6 {[%clk 00:00:50]} {[%emt 00:00:02]} Kg7
{[%clk 00:00:21]} {[%emt 00:00:02]} 32. a6 {[%clk 00:00:49]} {[%emt 00:00:03]}
Rc2 {[%clk 00:00:20]} {[%emt 00:00:05]} 33. b5 {[%clk 00:00:49]} {[%emt
00:00:03]} Rc5 {[%clk 00:00:19]} {[%emt 00:00:04]} 34. Rb7 {[%clk 00:00:44]}
{[%emt 00:00:08]} Rxd5 {[%clk 00:00:16]} {[%emt 00:00:07]} 35. a7 {[%clk
00:00:44]} Rd2 {[%clk 00:00:12]} {[%emt 00:00:08]} 36. b6 {[%clk 00:00:43]}
{[%emt 00:00:04]} Rb2 {[%clk 00:00:09]} {[%emt 00:00:05]} 37. Rf3 {[%clk
00:00:38]} {[%emt 00:00:08]} Kh6 {[%clk 00:00:09]} {[%emt 00:00:02]} 38. h4
{[%clk 00:00:38]} {[%emt 00:00:03]} f5 {[%clk 00:00:09]} {[%emt 00:00:03]} 39.
g5+ {[%clk 00:00:37]} {[%emt 00:00:04]} Kh5 {[%clk 00:00:09]} {[%emt 00:00:01]}
40. Rf4 {[%clk 00:00:37]} 1-0

[Event "14e Open International de Quenza"]
[Site "Quenza, France"]
[Date "2025.07.06"]
[Round "9.10"]
[White "Lovichi, Raphael"]
[Black "Deladerriere, Apollo"]
[Result "1/2-1/2"]
[TimeControl "5min+3s"]
[WhiteElo "1808"]
[BlackElo "2131"]

1. e4 {[%clk 00:05:03]} {[%emt 00:04:18]} c6 {[%clk 00:05:03]} 2. Nf3 {[%clk
00:05:03]} {[%emt 00:00:03]} d5 {[%clk 00:05:03]} {[%emt 00:00:01]} 3. Nc3
{[%clk 00:05:03]} dxe4 {[%clk 00:05:03]} {[%emt 00:00:02]} 4. Nxe4 {[%clk
00:05:03]} {[%emt 00:00:01]} Nf6 {[%clk 00:05:03]} {[%emt 00:00:01]} 5. Qe2
{[%clk 00:05:03]} {[%emt 00:00:03]} Nxe4 {[%clk 00:05:00]} {[%emt 00:00:06]} 6.
Qxe4 {[%clk 00:05:03]} {[%emt 00:00:03]} Nd7 {[%clk 00:05:00]} {[%emt
00:00:02]} 7. Bc4 {[%clk 00:04:59]} {[%emt 00:00:06]} Nf6 {[%clk 00:05:00]}
{[%emt 00:00:02]} 8. Ne5 {[%clk 00:04:49]} {[%emt 00:00:14]} e6 {[%clk
00:05:00]} {[%emt 00:00:01]} 9. Qe3 {[%clk 00:04:13]} {[%emt 00:00:38]} Qc7
{[%clk 00:04:17]} {[%emt 00:00:46]} 10. f4 {[%clk 00:04:03]} {[%emt 00:00:13]}
b5 {[%clk 00:03:57]} {[%emt 00:00:23]} 11. Bb3 {[%clk 00:03:57]} {[%emt
00:00:09]} Bd6 {[%clk 00:03:46]} {[%emt 00:00:15]} 12. d4 {[%clk 00:03:48]}
{[%emt 00:00:12]} a5 {[%clk 00:03:46]} {[%emt 00:00:04]} 13. c3 {[%clk
00:03:47]} {[%emt 00:00:03]} Bb7 {[%clk 00:03:34]} {[%emt 00:00:15]} 14. O-O
{[%clk 00:03:29]} {[%emt 00:00:21]} h6 {[%clk 00:02:46]} {[%emt 00:00:51]} 15.
Qg3 {[%clk 00:03:00]} {[%emt 00:00:32]} Rg8 {[%clk 00:02:03]} {[%emt 00:00:47]}
16. f5 {[%clk 00:02:25]} {[%emt 00:00:38]} exf5 {[%clk 00:02:03]} {[%emt
00:00:01]} 17. Rxf5 {[%clk 00:01:58]} {[%emt 00:00:30]} O-O-O {[%clk 00:01:57]}
{[%emt 00:00:09]} 18. Bf4 {[%clk 00:01:27]} {[%emt 00:00:33]} a4 {[%clk
00:01:53]} {[%emt 00:00:08]} 19. Bxf7 {[%clk 00:01:22]} {[%emt 00:00:08]} Bxe5
{[%clk 00:01:52]} {[%emt 00:00:04]} 20. dxe5 {[%clk 00:01:09]} {[%emt
00:00:16]} Qxf7 {[%clk 00:01:51]} {[%emt 00:00:04]} 21. exf6 {[%clk 00:01:09]}
{[%emt 00:00:02]} gxf6 {[%clk 00:01:50]} {[%emt 00:00:04]} 22. Qf2 {[%clk
00:00:56]} {[%emt 00:00:15]} Qg6 {[%clk 00:01:44]} {[%emt 00:00:10]} 23. Bg3
{[%clk 00:00:54]} {[%emt 00:00:05]} Rgf8 {[%clk 00:01:21]} {[%emt 00:00:26]} 24.
Rf1 {[%clk 00:00:53]} {[%emt 00:00:04]} h5 {[%clk 00:00:20]} {[%emt 00:01:05]}
25. Rxf6 {[%clk 00:00:13]} {[%emt 00:00:42]} Rxf6 {[%clk 00:00:20]} {[%emt
00:00:01]} 26. Qxf6 {[%clk 00:00:13]} {[%emt 00:00:01]} Qxf6 {[%clk 00:00:04]}
{[%emt 00:00:19]} 27. Rxf6 {[%clk 00:00:13]} {[%emt 00:00:01]} Rd1+ {[%clk
00:00:04]} {[%emt 00:00:01]} 28. Rf1 {[%clk 00:00:13]} {[%emt 00:00:03]} Rxf1+
{[%clk 00:00:04]} {[%emt 00:00:03]} 29. Kxf1 Kd7 {[%clk 00:00:04]} 30. Ke2
{[%clk 00:00:13]} c5 {[%clk 00:00:04]} {[%emt 00:00:01]} 31. Bf4 {[%clk
00:00:11]} {[%emt 00:00:05]} Bxg2 {[%clk 00:00:04]} {[%emt 00:00:02]} 32. h4
{[%clk 00:00:11]} {[%emt 00:00:02]} Ke6 {[%clk 00:00:04]} {[%emt 00:00:01]} 33.
Ke3 {[%clk 00:00:11]} {[%emt 00:00:01]} a3 {[%clk 00:00:04]} {[%emt 00:00:03]}
34. bxa3 {[%clk 00:00:10]} {[%emt 00:00:05]} Bd5 {[%clk 00:00:04]} 35. Kd3
{[%clk 00:00:08]} {[%emt 00:00:05]} Bxa2 {[%clk 00:00:04]} {[%emt 00:00:01]} 36.
Bg5 {[%clk 00:00:08]} Kd5 {[%clk 00:00:04]} {[%emt 00:00:02]} 37. Kc2 {[%clk
00:00:08]} {[%emt 00:00:01]} Kc4 {[%clk 00:00:04]} 38. Bf6 {[%clk 00:00:08]}
Bb3+ {[%clk 00:00:04]} 39. Kb2 {[%emt 00:00:02]} Bd1 40. Be5 {[%clk 00:00:08]}
Kd3 {[%clk 00:00:04]} {[%emt 00:00:02]} 41. Bf6 {[%clk 00:00:08]} {[%emt
00:00:01]} Kc4 {[%clk 00:00:04]} {[%emt 00:00:03]} 42. Be5 {[%clk 00:00:08]}
Kd5 {[%clk 00:00:04]} {[%emt 00:00:01]} 43. Bf6 {[%clk 00:00:08]} Ba4 {[%clk
00:00:04]} {[%emt 00:00:02]} 44. Bg5 {[%clk 00:00:08]} {[%emt 00:00:01]} Ke4
{[%clk 00:00:04]} 45. Bf6 {[%clk 00:00:08]} Kd3 {[%clk 00:00:04]} {[%emt
00:00:02]} 46. Be5 {[%clk 00:00:08]} {[%emt 00:00:01]} Ke4 {[%clk 00:00:04]}
{[%emt 00:00:03]} 47. Bf6 {[%clk 00:00:08]} Kf5 {[%clk 00:00:04]} 48. Bg5
{[%clk 00:00:08]} Kg4 {[%clk 00:00:04]} {[%emt 00:00:02]} 49. Kc1 {[%clk
00:00:08]} Kf3 {[%clk 00:00:04]} {[%emt 00:00:01]} 50. Kd2 {[%clk 00:00:08]}
{[%emt 00:00:01]} Ke4 {[%clk 00:00:04]} 51. Bf6 {[%clk 00:00:08]} {[%emt
00:00:01]} Kf5 {[%clk 00:00:04]} 52. Bg5 {[%clk 00:00:08]} {[%emt 00:00:01]}
Ke6 {[%clk 00:00:04]} 53. Kc1 {[%clk 00:00:08]} Ke5 {[%clk 00:00:04]} {[%emt
00:00:03]} 54. Kb2 {[%clk 00:00:08]} Kd5 {[%clk 00:00:04]} {[%emt 00:00:03]} 55.
Be7 {[%clk 00:00:08]} {[%emt 00:00:01]} Bd1 {[%clk 00:00:04]} {[%emt 00:00:02]}
56. Bg5 {[%clk 00:00:08]} {[%emt 00:00:01]} Kc4 {[%clk 00:00:04]} 57. Bf6
{[%clk 00:00:08]} {[%emt 00:00:01]} Kd3 {[%clk 00:00:04]} {[%emt 00:00:02]} 58.
Be5 {[%clk 00:00:08]} {[%emt 00:00:02]} Ke4 {[%clk 00:00:04]} {[%emt 00:00:01]}
59. Bf6 {[%clk 00:00:08]} Kf5 {[%clk 00:00:04]} {[%emt 00:00:03]} 60. Bg5
{[%clk 00:00:08]} {[%emt 00:00:01]} Be2 {[%clk 00:00:04]} {[%emt 00:00:02]} 61.
Kc2 {[%clk 00:00:08]} {[%emt 00:00:02]} Bf3 {[%clk 00:00:04]} {[%emt 00:00:01]}
62. Kb2 {[%clk 00:00:08]} Ke6 {[%clk 00:00:04]} {[%emt 00:00:01]} 63. Kc2
{[%clk 00:00:08]} Kd6 {[%clk 00:00:04]} 64. Kb2 {[%clk 00:00:05]} {[%emt
00:00:01]} Ke6 {[%clk 00:00:04]} 65. Kc2 Kd6 66. Kb2 {[%clk 00:00:08]} Ke6 67.
Kc2 1/2-1/2